fUSD/lending_fUSD_20250930
["ID","MTS","AMOUNT","RATE_DAILY","PERIOD"]
[388600587,1759249870588,-500.0,0.00019452,2]
[388600588,1759249870598,-151.0,0.00019452,2]
[388600589,1759249870608,-151.0,0.00019452,2]
[388600590,1759249870618,-870.8,0.00019452,2]
[388600591,1759249870628,-735.52,0.00019452,2]
[388600592,1759249870637,-796.33,0.00019452,2]
[388600593,1759249870646,-795.75,0.00019452,2]
[388600594,1759249870656,-500.0,0.00019452,2]
[388600595,1759249870665,-500.0,0.00019452,2]
[388600596,1759249870675,-500.0,0.00019452,2]
[388600597,1759249870685,-2380.34,0.00019452,2]
[388600598,1759249870694,-151.0,0.00019452,2]
[388600599,1759249870706,-151.0,0.00019452,2]
[388600600,1759249870715,-500.0,0.00019452,2]
[388600601,1759249870724,-151.0,0.00019452,2]
[388600602,1759249870734,-151.0,0.00019452,2]
[388600603,1759249870744,-500.0,0.00019452,2]
[388600604,1759249870753,-530.38,0.00019452,2]
[388600605,1759249870763,-1023.84,0.00019452,2]
[388600606,1759249870774,-1547.98,0.00019452,2]
[388600607,1759249870783,-753.91,0.00019452,2]
[388600608,1759249870793,-500.0,0.00019452,2]
[388600609,1759249870802,-500.0,0.00019452,2]
[388600610,1759249870812,-500.0,0.00019452,2]
[388600611,1759249870822,-500.0,0.00019452,2]
[388600612,1759249870832,-500.0,0.00019452,2]
[388600613,1759249870842,-151.0,0.00019452,2]
[388600614,1759249870851,-151.0,0.00019452,2]
[388600615,1759249870861,-151.0,0.00019452,2]
[388600616,1759249870872,-151.0,0.00019452,2]
[388600617,1759249870886,-500.0,0.00019452,2]
[388600618,1759249870895,-151.0,0.00019452,2]
[388600619,1759249870905,-500.0,0.00019452,2]
[388600620,1759249870914,-151.0,0.00019452,2]
[388600621,1759249870927,-151.0,0.00019452,2]
[388600622,1759249870936,-151.0,0.00019452,2]
[388600623,1759249870946,-500.0,0.00019452,2]
[388600624,1759249870958,-151.0,0.00019452,2]
[388600625,1759249870968,-500.0,0.00019452,2]
[388600626,1759249870977,-196.836822,0.00019452,2]
[388600627,1759249870987,-500.0,0.00019452,2]
[388600628,1759249870997,-151.0,0.00019452,2]
[388600629,1759249871006,-151.186132,0.00019452,2]
[388600630,1759249871016,-171.989308,0.00019452,2]
[388600631,1759249871025,-171.989308,0.00019452,2]
[388600632,1759249871036,-1676.78,0.00019452,2]
[388600633,1759249871047,-151.0,0.00019452,2]
[388600634,1759249871057,-1606.91,0.00019452,2]
[388600635,1759249871066,-171.989308,0.00019452,2]
[388600636,1759249871075,-500.0,0.00019452,2]
[388600637,1759249871085,-151.0,0.00019452,2]
[388600638,1759249871094,-171.989308,0.00019452,2]
[388600639,1759249871103,-1541.83,0.00019452,2]
[388600640,1759249871113,-151.0,0.00019452,2]
[388600641,1759249871122,-151.0,0.00019452,2]
[388600642,1759249871132,-151.0,0.00019452,2]
[388600643,1759249871142,-151.0,0.00019452,2]
[388600644,1759249871151,-171.989308,0.00019452,2]
[388600645,1759249871161,-171.989308,0.00019452,2]
[388600646,1759249871170,-171.989308,0.00019452,2]
[388600647,1759249871179,-171.989308,0.00019452,2]
[388600648,1759249871189,-500.0,0.00019452,2]
[388600649,1759249871198,-500.0,0.00019452,2]
[388600650,1759249871209,-500.0,0.00019452,2]
[388600651,1759249871219,-151.0,0.00019452,2]
[388600652,1759249871229,-151.0,0.00019452,2]
[388600653,1759249871239,-151.0,0.00019452,2]
[388600654,1759249871248,-500.0,0.00019452,2]
[388600655,1759249871258,-151.0,0.00019452,2]
[388600656,1759249871268,-2367.69,0.00019452,2]
[388600657,1759249871278,-500.0,0.00019452,2]
[388600658,1759249871288,-500.0,0.00019452,2]
[388600659,1759249871298,-151.0,0.00019452,2]
[388600660,1759249871308,-151.0,0.00019452,2]
[388600661,1759249871317,-500.0,0.00019452,2]
[388600662,1759249871328,-259.958378,0.00019452,2]
[388600663,1759249871338,-761.45,0.00019452,2]
[388600664,1759249871349,-500.0,0.00019452,2]
[388600665,1759249871358,-2198.01,0.00019452,2]
[388600666,1759249871368,-500.0,0.00019452,2]
[388600667,1759249871378,-607.24,0.00019452,2]
[388600668,1759249871388,-500.0,0.00019452,2]
[388600669,1759249871398,-1448.17,0.00019452,2]
[388600670,1759249871407,-500.0,0.00019452,2]
[388600671,1759249871417,-1249.79,0.00019452,2]
[388600672,1759249871427,-906.17,0.00019452,2]
[388600673,1759249871436,-500.0,0.00019452,2]
[388600674,1759249871446,-643.48,0.00019452,2]
[388600675,1759249871457,-500.0,0.00019452,2]
[388600676,1759249871466,-586.9,0.00019452,2]
[388600677,1759249871476,-500.0,0.00019452,2]
[388600678,1759249871488,-1958.91,0.00019452,2]
[388600679,1759249871498,-151.0,0.00019452,2]
[388600680,1759249871508,-151.0,0.00019452,2]
[388600681,1759249871517,-500.0,0.00019452,2]
[388600682,1759249871527,-2569.61,0.00019452,2]
[388600683,1759249871537,-500.0,0.00019452,2]
[388600684,1759249871546,-500.0,0.00019452,2]
[388600685,1759249871556,-856.58,0.00019452,2]
[388600686,1759249871566,-500.0,0.00019452,2]
[388600687,1759249871576,-1984.69,0.00019452,2]
[388600688,1759249871586,-884.13,0.00019452,2]
[388600689,1759249871596,-500.0,0.00019452,2]
[388600690,1759249871607,-632.95,0.00019452,2]
[388600691,1759249871616,-500.0,0.00019452,2]
[388600692,1759249871626,-151.0,0.00019452,2]
[388600693,1759249871636,-151.0,0.00019452,2]
[388600694,1759249871646,-556.34,0.00019452,2]
[388600695,1759249871656,-500.0,0.00019452,2]
[388600696,1759249871667,-151.0,0.00019452,2]
[388600697,1759249871676,-151.0,0.00019452,2]
[388600698,1759249871686,-287.918824,0.00019452,2]
[388600699,1759249871695,-151.0,0.00019452,2]
[388600700,1759249871707,-1106.09,0.00019452,2]
[388600701,1759249871717,-151.0,0.00019452,2]
[388600702,1759249871726,-1742.08,0.00019452,2]
[388600703,1759249871736,-629.15,0.00019452,2]
[388600704,1759249871746,-500.0,0.00019452,2]
[388600705,1759249871756,-1352.98,0.00019452,2]
[388600706,1759249871765,-945.64,0.00019452,2]
[388600707,1759249871775,-500.0,0.00019452,2]
[388600708,1759249871785,-3498.91,0.00019452,2]
[388600709,1759249871794,-947.96,0.00019452,2]
[388600710,1759249871804,-500.0,0.00019452,2]
[388600711,1759249871814,-151.0,0.00019452,2]
[388600712,1759249871825,-151.0,0.00019452,2]
[388600713,1759249871834,-151.0,0.00019452,2]
[388600714,1759249871844,-554.59,0.00019452,2]
[388600715,1759249871854,-151.0,0.00019452,2]
[388600716,1759249871863,-500.0,0.00019452,2]
[388600717,1759249871874,-2774.55,0.00019452,2]
[388600718,1759249871887,-171.777196,0.00019452,2]
[388600719,1759249871897,-500.0,0.00019452,2]
[388600720,1759249871906,-500.0,0.00019452,2]
[388600721,1759249871918,-2511.83,0.00019452,2]
[388600722,1759249871929,-500.0,0.00019452,2]
[388600723,1759249871938,-151.33085,0.00019452,2]
[388600724,1759249871948,-151.33085,0.00019452,2]
[388600725,1759249871960,-151.33085,0.00019452,2]
[388600726,1759249871969,-1187.47,0.00019452,2]
[388600727,1759249871979,-500.0,0.00019452,2]
[388600728,1759249871989,-151.33085,0.00019452,2]
[388600729,1759249871999,-151.33085,0.00019452,2]
[388600730,1759249872010,-151.33085,0.00019452,2]
[388600731,1759249872019,-500.0,0.00019452,2]
[388600732,1759249872028,-151.33085,0.00019452,2]
[388600733,1759249872037,-519.03,0.00019452,2]
[388600734,1759249872047,-2830.66,0.00019452,2]
[388600735,1759249872057,-151.33085,0.00019452,2]
[388600736,1759249872066,-151.33085,0.00019452,2]
[388600737,1759249872076,-151.33085,0.00019452,2]
[388600738,1759249872085,-500.0,0.00019452,2]
[388600739,1759249872094,-151.33085,0.00019452,2]
[388600740,1759249872103,-151.33085,0.00019452,2]
[388600741,1759249872112,-500.0,0.00019452,2]
[388600742,1759249872122,-500.0,0.00019452,2]
[388600743,1759249872131,-593.67,0.00019452,2]
[388600744,1759249872141,-367.81218179,0.00019452,2]
[388600745,1759249872150,-500.0,0.00019452,2]
[388600746,1759249872160,-529.81573756,0.00019452,2]
[388600747,1759249872170,-500.0,0.00019452,2]
[388600748,1759249872180,-500.0,0.00019452,2]
[388600749,1759249872190,-500.0,0.00019452,2]
[388600750,1759249872201,-2587.67,0.00019452,2]
[388600751,1759249872211,-500.0,0.00019452,2]
[388600752,1759249872221,-1073.45,0.00019452,2]
[388600753,1759249872231,-500.0,0.00019452,2]
[388600754,1759249872240,-151.0,0.00019452,2]
[388600755,1759249872250,-151.0,0.00019452,2]
[388600756,1759249872260,-788.06,0.00019452,2]
[388600757,1759249872269,-151.0,0.00019452,2]
[388600758,1759249872279,-151.0,0.00019452,2]
[388600759,1759249872288,-151.0,0.00019452,2]
[388600760,1759249872298,-151.0,0.00019452,2]
[388600761,1759249872308,-237.071723,0.00019452,2]
[388600762,1759249872319,-2775.24,0.00019452,2]
[388600763,1759249872329,-500.0,0.00019452,2]
[388600764,1759249872338,-520.92,0.00019452,2]
[388600765,1759249872347,-500.0,0.00019452,2]
[388600766,1759249872356,-1056.08,0.00019452,2]
[388600767,1759249872366,-500.0,0.00019452,2]
[388600768,1759249872376,-500.0,0.00019452,2]
[388600769,1759249872386,-500.0,0.00019452,2]
[388600770,1759249872395,-500.0,0.00019452,2]
[388600771,1759249872405,-562.08,0.00019452,2]
[388600772,1759249872415,-3271.8,0.00019452,2]
[388600773,1759249872424,-500.0,0.00019452,2]
[388600774,1759249872434,-500.0,0.00019452,2]
[388600775,1759249872444,-151.0,0.00019452,2]
[388600776,1759249872454,-151.0,0.00019452,2]
[388600777,1759249872464,-500.0,0.00019452,2]
[388600778,1759249872830,-500.0,0.00019452,2]
[388600779,1759249872845,-151.0,0.00019452,2]
[388600780,1759249872855,-500.0,0.00019452,2]
[388600781,1759249872864,-151.0,0.00019452,2]
[388600782,1759249872875,-151.0,0.00019452,2]
[388600783,1759249872886,-151.0,0.00019452,2]
[388600784,1759249872896,-151.0,0.00019452,2]
[388600785,1759249872906,-158.123459,0.00019452,2]
[388600786,1759249872915,-151.0,0.00019452,2]
[388600787,1759249872924,-1649.99,0.00019452,2]
[388600788,1759249872933,-500.0,0.00019452,2]
[388600789,1759249872943,-241.468212,0.00019452,2]
[388600790,1759249872954,-500.0,0.00019452,2]
[388600791,1759249872963,-500.0,0.00019452,2]
[388600792,1759249872972,-500.0,0.00019452,2]
[388600793,1759249872982,-500.0,0.00019452,2]
[388600794,1759249872991,-2413.64,0.00019452,2]
[388600795,1759249873000,-500.0,0.00019452,2]
[388600796,1759249873010,-500.0,0.00019452,2]
[388600797,1759249873020,-500.0,0.00019452,2]
[388600798,1759249873029,-500.0,0.00019452,2]
[388600799,1759249873039,-865.04,0.00019452,2]
[388600800,1759249873049,-151.0,0.00019452,2]
[388600801,1759249873059,-732.06,0.00019452,2]
[388600802,1759249873069,-1015.28,0.00019452,2]
[388600803,1759249873080,-151.0,0.00019452,2]
[388600804,1759249873089,-151.0,0.00019452,2]
[388600805,1759249873099,-1096.95,0.00019452,2]
[388600806,1759249873109,-500.0,0.00019452,2]
[388600807,1759249873118,-2531.82,0.00019452,2]
[388600808,1759249873127,-1328.15,0.00019452,2]
[388600809,1759249873137,-500.0,0.00019452,2]
[388600810,1759249873146,-151.0,0.00019452,2]
[388600811,1759249873157,-578.82,0.00019452,2]
[388600812,1759249873166,-151.0,0.00019452,2]
[388600813,1759249873175,-151.0,0.00019452,2]
[388600814,1759249873184,-500.0,0.00019452,2]
[388600815,1759249873199,-500.0,0.00019452,2]
[388600816,1759249873210,-1491.42,0.00019452,2]
[388600817,1759249873220,-500.0,0.00019452,2]
[388600818,1759249873230,-500.0,0.00019452,2]
[388600819,1759249873240,-1030.5,0.00019452,2]
[388600820,1759249873250,-695.45,0.00019452,2]
[388600821,1759249873261,-500.0,0.00019452,2]
[388600822,1759249873271,-514.24,0.00019452,2]
[388600823,1759249873281,-500.0,0.00019452,2]
[388600824,1759249873292,-500.0,0.00019452,2]
[388600825,1759249873303,-500.0,0.00019452,2]
[388600826,1759249873314,-500.0,0.00019452,2]
[388600827,1759249873324,-500.0,0.00019452,2]
[388600828,1759249873335,-500.0,0.00019452,2]
[388600829,1759249873346,-994.38,0.00019452,2]
[388600830,1759249873356,-500.0,0.00019452,2]
[388600831,1759249873366,-500.0,0.00019452,2]
[388600832,1759249873376,-848.58,0.00019452,2]
[388600833,1759249873386,-4540.63,0.00019452,2]
[388600834,1759249873395,-500.0,0.00019452,2]
[388600835,1759249873405,-678.24,0.00019452,2]
[388600836,1759249873415,-1847.64,0.00019452,2]
[388600837,1759249873424,-775.23,0.00019452,2]
[388600838,1759249873434,-500.0,0.00019452,2]
[388600839,1759249873443,-918.34,0.00019452,2]
[388600840,1759249873454,-1517.91,0.00019452,2]
[388600841,1759249873463,-151.0,0.00019452,2]
[388600842,1759249873473,-151.0,0.00019452,2]
[388600843,1759249873482,-151.0,0.00019452,2]
[388600844,1759249873492,-500.0,0.00019452,2]
[388600845,1759249873502,-151.0,0.00019452,2]
[388600846,1759249873511,-151.0,0.00019452,2]
[388600847,1759249873521,-151.0,0.00019452,2]
[388600848,1759249873532,-500.0,0.00019452,2]
[388600849,1759249873542,-500.0,0.00019452,2]
[388600850,1759249873552,-500.0,0.00019452,2]
[388600851,1759249873562,-1215.69,0.00019452,2]
[388600852,1759249873572,-500.0,0.00019452,2]
[388600853,1759249873582,-500.0,0.00019452,2]
[388600854,1759249873597,-500.0,0.00019452,2]
[388600855,1759249873607,-540.75,0.00019452,2]
[388600856,1759249873618,-500.0,0.00019452,2]
[388600857,1759249873629,-1917.21,0.00019452,2]
[388600858,1759249873640,-500.0,0.00019452,2]
[388600859,1759249873650,-938.24,0.00019452,2]
[388600860,1759249873660,-978.98,0.00019452,2]
[388600861,1759249873671,-500.0,0.00019452,2]
[388600862,1759249873681,-1005.4,0.00019452,2]
[388600863,1759249873691,-500.0,0.00019452,2]
[388600864,1759249873701,-679.04,0.00019452,2]
[388600865,1759249873710,-1739.75,0.00019452,2]
[388600866,1759249873720,-500.0,0.00019452,2]
[388600867,1759249873730,-500.0,0.00019452,2]
[388600868,1759249873740,-4691.52,0.00019452,2]
[388600869,1759249873750,-500.0,0.00019452,2]
[388600870,1759249873760,-500.0,0.00019452,2]
[388600871,1759249873770,-500.0,0.00019452,2]
[388600872,1759249873780,-500.0,0.00019452,2]
[388600873,1759249873790,-500.0,0.00019452,2]
[388600874,1759249873799,-500.0,0.00019452,2]
[388600875,1759249873810,-500.0,0.00019452,2]
[388600876,1759249873820,-1598.83,0.00019452,2]
[388600877,1759249873830,-1491.16,0.00019452,2]
[388600878,1759249873840,-151.0,0.00019452,2]
[388600879,1759249873850,-151.0,0.00019452,2]
[388600880,1759249873860,-151.0,0.00019452,2]
[388600881,1759249873870,-904.66,0.00019452,2]
[388600882,1759249873882,-4560.09,0.00019452,2]
[388600883,1759249873892,-1198.14,0.00019452,2]
[388600884,1759249873902,-500.0,0.00019452,2]
[388600885,1759249873912,-500.0,0.00019452,2]
[388600886,1759249873924,-151.0,0.00019452,2]
[388600887,1759249873935,-151.0,0.00019452,2]
[388600888,1759249873946,-151.0,0.00019452,2]
[388600889,1759249873958,-500.0,0.00019452,2]
[388600890,1759249873968,-737.28,0.00019452,2]
[388600891,1759249873978,-2355.43,0.00019452,2]
[388600892,1759249873992,-500.0,0.00019452,2]
[388600893,1759249874003,-500.0,0.00019452,2]
[388600894,1759249874013,-500.0,0.00019452,2]
[388600895,1759249874023,-500.0,0.00019452,2]
[388600896,1759249874034,-500.0,0.00019452,2]
[388600897,1759249874046,-152.334506,0.00019452,2]
[388600898,1759249874057,-500.0,0.00019452,2]
[388600899,1759249874067,-500.0,0.00019452,2]
[388600900,1759249874077,-151.0,0.00019452,2]
[388600901,1759249874087,-151.0,0.00019452,2]
[388600902,1759249874097,-151.0,0.00019452,2]
[388600903,1759249874107,-764.93,0.00019452,2]
[388600904,1759249874118,-500.0,0.00019452,2]
[388600905,1759249874128,-685.35,0.00019452,2]
[388600906,1759249874138,-702.55,0.00019452,2]
[388600907,1759249874148,-1003.38,0.00019452,2]
[388600908,1759249874159,-500.0,0.00019452,2]
[388600909,1759249874169,-151.0,0.00019452,2]
[388600910,1759249874179,-151.0,0.00019452,2]
[388600911,1759249874189,-151.0,0.00019452,2]
[388600912,1759249874199,-847.95,0.00019452,2]
[388600913,1759249874210,-151.0,0.00019452,2]
[388600914,1759249874220,-4540.99,0.00019452,2]
[388600915,1759249874230,-500.0,0.00019452,2]
[388600916,1759249874240,-500.0,0.00019452,2]
[388600917,1759249874250,-500.0,0.00019452,2]
[388600918,1759249874260,-3006.36,0.00019452,2]
[388600919,1759249874270,-3831.64,0.00019452,2]
[388600920,1759249874281,-924.71,0.00019452,2]
[388600921,1759249874294,-863.68,0.00019452,2]
[388600922,1759249874304,-500.0,0.00019452,2]
[388600923,1759249874314,-2014.92,0.00019452,2]
[388600924,1759249874324,-500.0,0.00019452,2]
[388600925,1759249874335,-819.66,0.00019452,2]
[388600926,1759249874345,-500.0,0.00019452,2]
[388600927,1759249874356,-500.0,0.00019452,2]
[388600928,1759249874371,-500.0,0.00019452,2]
[388600929,1759249874381,-1644.15,0.00019452,2]
[388600930,1759249874394,-500.0,0.00019452,2]
[388600931,1759249874404,-524.38804097,0.00019452,2]
[388600932,1759249874414,-824.63,0.00019452,2]
[388600933,1759249874423,-5869.97,0.00019452,2]
[388600934,1759249874434,-500.0,0.00019452,2]
[388600935,1759249874446,-500.0,0.00019452,2]
[388600936,1759249874457,-433.84,0.00019452,2]
[388600937,1759249874467,-582.13,0.00019452,2]
[388600938,1759249874476,-1448.22,0.00019452,2]
[388600939,1759249874486,-500.0,0.00019452,2]
[388600940,1759249874496,-500.0,0.00019452,2]
[388600941,1759249874506,-578.84,0.00019452,2]
[388600942,1759249874516,-1392.34,0.00019452,2]
[388600943,1759249874526,-500.0,0.00019452,2]
[388600944,1759249874536,-1813.14,0.00019452,2]
[388600945,1759249874545,-151.0,0.00019452,2]
[388600946,1759249874555,-1137.79,0.00019452,2]
[388600947,1759249874564,-151.0,0.00019452,2]
[388600948,1759249874574,-151.0,0.00019452,2]
[388600949,1759249874584,-500.0,0.00019452,2]
[388600950,1759249874594,-2029.0,0.00019452,2]
[388600951,1759249874604,-558.9,0.00019452,2]
[388600952,1759249874613,-1554.29,0.00019452,2]
[388600953,1759249874623,-500.0,0.00019452,2]
[388600954,1759249874635,-500.0,0.00019452,2]
[388600955,1759249874645,-500.0,0.00019452,2]
[388600956,1759249874655,-834.18,0.00019452,2]
[388600957,1759249874664,-500.0,0.00019452,2]
[388600958,1759249874674,-151.0,0.00019452,2]
[388600959,1759249874684,-151.0,0.00019452,2]
[388600960,1759249874694,-151.0,0.00019452,2]
[388600961,1759249874704,-151.0,0.00019452,2]
[388600962,1759249874715,-151.0,0.00019452,2]
[388600963,1759249874725,-233.704171,0.00019452,2]
[388600964,1759249874734,-500.0,0.00019452,2]
[388600965,1759249874743,-3823.81,0.00019452,2]
[388600966,1759249874753,-2307.11,0.00019452,2]
[388600967,1759249874765,-2152.71,0.00019452,2]
[388600968,1759249874776,-500.0,0.00019452,2]
[388600969,1759249874785,-1515.99,0.00019452,2]
[388600970,1759249874795,-500.0,0.00019452,2]
[388600971,1759249874804,-151.0,0.00019452,2]
[388600972,1759249874814,-151.0,0.00019452,2]
[388600973,1759249874825,-771.45,0.00019452,2]
[388600974,1759249874836,-500.0,0.00019452,2]
[388600975,1759249874846,-500.0,0.00019452,2]
[388600976,1759249874856,-500.0,0.00019452,2]
[388600977,1759249874867,-500.0,0.00019452,2]
[388600978,1759249874879,-2834.9,0.00019452,2]
[388600979,1759249874889,-500.0,0.00019452,2]
[388600980,1759249874899,-4284.68,0.00019452,2]
[388600981,1759249874910,-500.0,0.00019452,2]
[388600982,1759249874921,-618.33,0.00019452,2]
[388600983,1759249874931,-3313.28,0.00019452,2]
[388600984,1759249874941,-500.0,0.00019452,2]
[388600985,1759249874952,-500.0,0.00019452,2]
[388600986,1759249874962,-703.73,0.00019452,2]
[388600987,1759249874974,-500.0,0.00019452,2]
[388600988,1759249874983,-4366.43,0.00019452,2]
[388600989,1759249874994,-500.0,0.00019452,2]
[388600990,1759249875004,-500.0,0.00019452,2]
[388600991,1759249875014,-500.0,0.00019452,2]
[388600992,1759249875024,-689.89,0.00019452,2]
[388600993,1759249875034,-500.0,0.00019452,2]
[388600994,1759249875044,-3999.45,0.00019452,2]
[388600995,1759249875053,-664.25,0.00019452,2]
[388600996,1759249875063,-953.02,0.00019452,2]
[388600997,1759249875072,-2566.51,0.00019452,2]
[388600998,1759249875093,-500.0,0.00019452,2]
[388600999,1759249875103,-2865.63,0.00019452,2]
[388601000,1759249875114,-500.0,0.00019452,2]
[388601001,1759249875125,-3116.39,0.00019452,2]
[388601002,1759249875134,-3659.64,0.00019452,2]
[388601003,1759249875144,-422.036572,0.00019452,2]
[388601004,1759249875154,-3400.17,0.00019452,2]
[388601005,1759249875163,-422.036572,0.00019452,2]
[388601006,1759249875174,-422.036572,0.00019452,2]
[388601007,1759249875184,-500.0,0.00019452,2]
[388601008,1759249875193,-422.036572,0.00019452,2]
[388601009,1759249875204,-500.0,0.00019452,2]
[388601010,1759249875215,-422.036572,0.00019452,2]
[388601011,1759249875225,-422.036572,0.00019452,2]
[388601012,1759249875236,-422.036572,0.00019452,2]
[388601013,1759249875246,-500.0,0.00019452,2]
[388601014,1759249875256,-422.036572,0.00019452,2]
[388601015,1759249875266,-422.036572,0.00019452,2]
[388601016,1759249875275,-422.036572,0.00019452,2]
[388601017,1759249875285,-422.036572,0.00019452,2]
[388601018,1759249875295,-422.036572,0.00019452,2]
[388601019,1759249875304,-797.85,0.00019452,2]
[388601020,1759249875314,-500.0,0.00019452,2]
[388601021,1759249875561,-500.0,0.00019452,2]
[388601022,1759249875571,-500.0,0.00019452,2]
[388601023,1759249875580,-500.0,0.00019452,2]
[388601024,1759249875590,-459.06734511,0.00019452,2]
[388601025,1759249875599,-2839.3,0.00019452,2]
[388601026,1759249875608,-500.0,0.00019452,2]
[388601027,1759249875622,-4067.08,0.00019452,2]
[388601028,1759249875632,-4647.02,0.00019452,2]
[388601029,1759249875641,-151.0,0.00019452,2]
[388601030,1759249875651,-500.0,0.00019452,2]
[388601031,1759249875660,-151.0,0.00019452,2]
[388601032,1759249875670,-997.57,0.00019452,2]
[388601033,1759249875679,-151.0,0.00019452,2]
[388601034,1759249875689,-2767.59,0.00019452,2]
[388601035,1759249875698,-500.0,0.00019452,2]
[388601036,1759249875707,-500.0,0.00019452,2]
[388601037,1759249875718,-500.0,0.00019452,2]
[388601038,1759249875727,-3465.31,0.00019452,2]
[388601039,1759249875737,-545.75156802,0.00019452,2]
[388601040,1759249875747,-151.0,0.00019452,2]
[388601041,1759249875756,-151.0,0.00019452,2]
[388601042,1759249875766,-4866.7,0.00019452,2]
[388601043,1759249875776,-151.0,0.00019452,2]
[388601044,1759249875785,-158.657039,0.00019452,2]
[388601045,1759249875796,-1554.14,0.00019452,2]
[388601046,1759249875806,-151.0,0.00019452,2]
[388601047,1759249875815,-500.0,0.00019452,2]
[388601048,1759249875825,-151.0,0.00019452,2]
[388601049,1759249875834,-500.0,0.00019452,2]
[388601050,1759249875844,-151.0,0.00019452,2]
[388601051,1759249875854,-500.0,0.00019452,2]
[388601052,1759249875863,-500.0,0.00019452,2]
[388601053,1759249875873,-2680.84,0.00019452,2]
[388601054,1759249875885,-151.0,0.00019452,2]
[388601055,1759249875894,-803.25,0.00019452,2]
[388601056,1759249875904,-151.0,0.00019452,2]
[388601057,1759249875913,-151.0,0.00019452,2]
[388601058,1759249875923,-710.23,0.00019452,2]
[388601059,1759249875932,-151.924902,0.00019452,2]
[388601060,1759249875942,-625.58557,0.00019452,2]
[388601061,1759249875952,-3149.76,0.00019452,2]
[388601062,1759249875963,-625.58557,0.00019452,2]
[388601063,1759249875973,-625.58557,0.00019452,2]
[388601064,1759249875983,-266.142066,0.00019452,2]
[388601065,1759249875992,-500.0,0.00019452,2]
[388601066,1759249876002,-500.0,0.00019452,2]
[388601067,1759249876011,-625.58557,0.00019452,2]
[388601068,1759249876022,-625.58557,0.00019452,2]
[388601069,1759249876031,-151.0,0.00019452,2]
[388601070,1759249876041,-151.0,0.00019452,2]
[388601071,1759249876050,-625.58557,0.00019452,2]
[388601072,1759249876060,-151.0,0.00019452,2]
[388601073,1759249876069,-500.0,0.00019452,2]
[388601074,1759249876079,-182.217577,0.00019452,2]
[388601075,1759249876088,-151.0,0.00019452,2]
[388601076,1759249876097,-182.217577,0.00019452,2]
[388601077,1759249876106,-182.217577,0.00019452,2]
[388601078,1759249876115,-625.58557,0.00019452,2]
[388601079,1759249876124,-625.58557,0.00019452,2]
[388601080,1759249876134,-151.0,0.00019452,2]
[388601081,1759249876143,-625.58557,0.00019452,2]
[388601082,1759249876153,-151.0,0.00019452,2]
[388601083,1759249876162,-182.217577,0.00019452,2]
[388601084,1759249876171,-182.217577,0.00019452,2]
[388601085,1759249876180,-151.0,0.00019452,2]
[388601086,1759249876190,-182.217577,0.00019452,2]